fUST/lending_fUST_20251010
["ID","MTS","AMOUNT","RATE_DAILY","PERIOD"]
[390564243,1760085049656,-553.77,0.0001726,2]
[390564244,1760085049666,-500.0,0.0001726,2]
[390564245,1760085049675,-974.65,0.0001726,2]
[390564246,1760085049685,-151.0,0.0001726,2]
[390564247,1760085049695,-500.0,0.0001726,2]
[390564248,1760085049705,-1193.37,0.0001726,2]
[390564249,1760085049715,-667.95,0.0001726,2]
[390564250,1760085049726,-500.0,0.0001726,2]
[390564251,1760085049736,-500.0,0.0001726,2]
[390564252,1760085049747,-402.56415911,0.0001726,2]
[390564253,1760085049757,-151.0,0.0001726,2]
[390564254,1760085049766,-151.0,0.0001726,2]
[390564255,1760085049776,-151.0,0.0001726,2]
[390564256,1760085049786,-500.0,0.0001726,2]
[390564257,1760085049796,-500.0,0.0001726,2]
[390564258,1760085049805,-151.0,0.0001726,2]
[390564259,1760085049815,-726.2,0.0001726,2]
[390564260,1760085049825,-892.4,0.0001726,2]
[390564261,1760085049835,-500.0,0.0001726,2]
[390564262,1760085049844,-151.0,0.0001726,2]
[390564263,1760085049854,-154.141836,0.0001726,2]
[390564264,1760085049863,-500.0,0.0001726,2]
[390564265,1760085049872,-2398.45,0.0001726,2]
[390564266,1760085049882,-3695.74,0.0001726,2]
[390564267,1760085049892,-215.65387175,0.0001726,2]
[390564268,1760085049902,-1053.67,0.0001726,2]
[390564269,1760085049911,-500.0,0.0001726,2]
[390564270,1760085049921,-500.0,0.0001726,2]
[390564271,1760085049931,-1086.15,0.0001726,2]
[390564272,1760085049941,-500.0,0.0001726,2]
[390564273,1760085049951,-500.0,0.0001726,2]
[390564274,1760085049961,-500.0,0.0001726,2]
[390564275,1760085049971,-789.19,0.0001726,2]
[390564276,1760085049981,-151.0,0.0001726,2]
[390564277,1760085049990,-232.335434,0.0001726,2]
[390564278,1760085050000,-500.0,0.0001726,2]
[390564279,1760085050010,-151.0,0.0001726,2]
[390564280,1760085050019,-151.0,0.0001726,2]
[390564281,1760085050028,-791.78,0.0001726,2]
[390564282,1760085050038,-500.0,0.0001726,2]
[390564283,1760085050047,-151.0,0.0001726,2]
[390564284,1760085050057,-500.0,0.0001726,2]
[390564285,1760085050067,-158.605407,0.0001726,2]
[390564286,1760085050076,-1753.38,0.0001726,2]
[390564287,1760085050088,-151.0,0.0001726,2]
[390564288,1760085050100,-512.2,0.0001726,2]
[390564289,1760085050113,-151.0,0.0001726,2]
[390564290,1760085050130,-839.17,0.0001726,2]
[390564291,1760085050141,-151.0,0.0001726,2]
[390564292,1760085050151,-4738.89,0.0001726,2]
[390564293,1760085050163,-151.0,0.0001726,2]
[390564294,1760085050173,-151.0,0.0001726,2]
[390564295,1760085050185,-151.0,0.0001726,2]
[390564296,1760085050202,-504.57473362,0.0001726,2]
[390564297,1760085050211,-500.0,0.0001726,2]
[390564298,1760085050221,-628.75,0.0001726,2]
[390564299,1760085050230,-500.0,0.0001726,2]
[390564300,1760085050239,-594.09,0.0001726,2]
[390564301,1760085050249,-500.0,0.0001726,2]
[390564302,1760085050259,-173.963947,0.0001726,2]
[390564303,1760085050268,-173.963947,0.0001726,2]
[390564304,1760085050277,-173.963947,0.0001726,2]
[390564305,1760085050286,-1049.08,0.0001726,2]
[390564306,1760085050295,-500.0,0.0001726,2]
[390564307,1760085050305,-173.963947,0.0001726,2]
[390564308,1760085050314,-151.0,0.0001726,2]
[390564309,1760085050324,-2044.81,0.0001726,2]
[390564310,1760085050333,-151.0,0.0001726,2]
[390564311,1760085050343,-566.06,0.0001726,2]
[390564312,1760085050353,-500.0,0.0001726,2]
[390564313,1760085050363,-5841.31,0.0001726,2]
[390564314,1760085050372,-151.0,0.0001726,2]
[390564315,1760085050382,-728.94,0.0001726,2]
[390564316,1760085050391,-151.0,0.0001726,2]
[390564317,1760085050400,-500.0,0.0001726,2]
[390564318,1760085050410,-629.52294604,0.0001726,2]
[390564319,1760085050419,-500.0,0.0001726,2]
[390564320,1760085050429,-500.0,0.0001726,2]
[390564321,1760085050438,-1986.39,0.0001726,2]
[390564322,1760085050447,-599.1752313,0.0001726,2]
[390564323,1760085050456,-168.10077244,0.00017299,2]
[390564324,1760085050466,-267.17935912,0.000173,2]
[390564325,1760085050476,-4195.0,0.00017307,2]
[390564326,1760085050485,-2159.0,0.00017318,2]
[390564327,1760085050496,-630.0,0.00017318,2]
[390564328,1760085050506,-411.0,0.00017318,2]
[390564329,1760085050515,-414.167,0.00017318,2]
[390564330,1760085050525,-310.0,0.00017357,2]
[390564331,1760085050534,-151.0,0.000174,2]
[390564332,1760085050544,-500.0,0.00017417,2]
[390564333,1760085050553,-501.05544168,0.00017417,2]
[390564334,1760085050563,-500.0,0.00017417,2]
[390564335,1760085050573,-500.0,0.00017417,2]
[390564336,1760085050583,-500.0,0.00017417,2]
[390564337,1760085050593,-500.0,0.00017417,2]
[390564338,1760085050602,-500.0,0.00017417,2]
[390564339,1760085050614,-500.0,0.00017417,2]
[390564340,1760085050624,-501.28009836,0.00017417,2]
[390564341,1760085050634,-500.0,0.00017417,2]
[390564342,1760085050644,-500.0,0.00017417,2]
[390564343,1760085050654,-500.0,0.00017417,2]
[390564344,1760085050664,-500.0,0.00017417,2]
[390564345,1760085050674,-161.86847584,0.00017417,2]
[390564346,1760085050683,-500.0,0.00017417,2]
[390564347,1760085050692,-157.30324439,0.00017417,2]
[390564348,1760085050702,-500.0,0.00017417,2]
[390564349,1760085050711,-500.0,0.00017417,2]
[390564350,1760085050721,-500.0,0.00017417,2]
[390564351,1760085050730,-500.95947091,0.00017417,2]
[390564352,1760085050739,-500.0,0.00017417,2]
[390564353,1760085050749,-500.0,0.00017417,2]
[390564354,1760085050758,-500.0,0.00017417,2]
[390564355,1760085050769,-500.0,0.00017417,2]
[390564356,1760085050783,-500.0,0.00017417,2]
[390564357,1760085050792,-500.86991837,0.00017417,2]
[390564358,1760085050801,-500.0,0.00017417,2]
[390564359,1760085050810,-500.0,0.00017417,2]
[390564360,1760085050820,-500.0,0.00017439,2]
[390564361,1760085050829,-500.0,0.00017439,2]
[390564362,1760085050839,-500.0,0.00017439,2]
[390564363,1760085050848,-500.34845163,0.00017439,2]
[390564364,1760085050858,-500.53836085,0.00017439,2]
[390564365,1760085050867,-500.0,0.00017439,2]
[390564366,1760085050877,-500.0,0.00017439,2]
[390564367,1760085050887,-505.45386967,0.00017439,2]
[390564368,1760085050896,-500.0,0.00017439,2]
[390564369,1760085050905,-627.54677909,0.00017439,2]
[390564370,1760085050915,-500.0,0.00017439,2]
[390564371,1760085050924,-500.0,0.00017439,2]
[390564372,1760085050934,-297.8284942,0.00017447,2]
[390564373,1760085050944,-409.7560672,0.00017447,2]
[390564374,1760085050954,-588.2885567,0.00017447,2]
[390564375,1760085050964,-162.8446322,0.00017447,2]
[390564376,1760085050974,-588.2885567,0.00017447,2]
[390564377,1760085050984,-587.5695383,0.00017447,2]
[390564378,1760085051135,-464.0088903,0.00017447,2]
[390564379,1760085051145,-500.0,0.00017449,2]
[390564380,1760085051154,-500.0,0.00017449,2]
[390564381,1760085051164,-165.24160476,0.00017475,2]
[390564382,1760085051173,-500.54606732,0.00017475,2]
[390564383,1760085051183,-214.21809975,0.00017479,2]
[390564384,1760085051192,-468.99805906,0.00017481,2]
[390564385,1760085051201,-310.0,0.00017493,2]
[390564386,1760085051210,-268.2940422,0.000175,2]
[390564387,1760085051219,-267.17935912,0.000175,2]
[390564388,1760085051229,-154.856397,0.000175,2]
[390564389,1760085051238,-500.0,0.00017525,2]
[390564390,1760085051247,-500.0,0.00017525,2]
[390564391,1760085051256,-500.0,0.00017525,2]
[390564392,1760085051264,-500.0,0.00017525,2]
[390564393,1760085051273,-500.0,0.00017525,2]
[390564394,1760085051283,-498.33544719,0.00017525,2]
[390564395,1760085051292,-642.55581265,0.00017525,2]
[390564396,1760085051301,-186.74785753,0.00017533,2]
[390564397,1760085051310,-500.0,0.00017534,2]
[390564398,1760085051319,-734.51,0.00017534,2]
[390564399,1760085051329,-703.91,0.00017534,2]
[390564400,1760085051338,-500.0,0.00017534,2]
[390564401,1760085051347,-500.0,0.00017534,2]
[390564402,1760085051357,-500.0,0.00017534,2]
[390564403,1760085051366,-500.0,0.00017534,2]
[390564404,1760085051375,-565.37,0.00017534,2]
[390564405,1760085051385,-838.24,0.00017534,2]
[390564406,1760085051394,-300.0,0.00017534,2]
[390564407,1760085051403,-152.003691,0.00017534,2]
[390564408,1760085051413,-500.0,0.00017534,2]
[390564409,1760085051422,-500.0,0.00017534,2]
[390564410,1760085051431,-500.0,0.00017534,2]
[390564411,1760085051440,-500.0,0.00017534,2]
[390564412,1760085051449,-500.0,0.00017534,2]
[390564413,1760085051458,-313.55483031,0.00017534,2]
[390564414,1760085051467,-151.0,0.00017534,2]
[390564415,1760085051475,-500.0,0.00017534,2]
[390564416,1760085051485,-500.0,0.00017534,2]
[390564417,1760085051494,-440.65556953,0.00017534,2]
[390564418,1760085051503,-1274.73,0.00017534,2]
[390564419,1760085051512,-500.0,0.00017534,2]
[390564420,1760085051520,-446.2391071,0.00017534,2]
[390564421,1760085051529,-546.76,0.00017534,2]
[390564422,1760085051539,-500.0,0.00017534,2]
[390564423,1760085051548,-500.0,0.00017534,2]
[390564424,1760085051558,-236.38836431,0.00017534,2]
[390564425,1760085051567,-500.0,0.00017534,2]
[390564426,1760085051576,-500.0,0.00017534,2]
[390564427,1760085051585,-500.0,0.00017534,2]
[390564428,1760085051594,-500.0,0.00017534,2]
[390564429,1760085051604,-500.0,0.00017534,2]
[390564430,1760085051613,-880.45,0.00017534,2]
[390564431,1760085051622,-500.0,0.00017534,2]
[390564432,1760085051631,-500.0,0.00017534,2]
[390564433,1760085051640,-500.0,0.00017534,2]
[390564434,1760085051650,-1022.73,0.00017534,2]
[390564435,1760085051659,-198.47974526,0.00017534,2]
[390564436,1760085051668,-151.0,0.00017534,2]
[390564437,1760085051677,-1078.6,0.00017534,2]
[390564438,1760085051686,-151.0,0.00017534,2]
[390564439,1760085051695,-239.06881,0.00017534,2]
[390564440,1760085051704,-151.0,0.00017534,2]
[390564441,1760085051713,-595.25240647,0.00017534,2]
[390564442,1760085051723,-151.0,0.00017534,2]
[390564443,1760085051733,-151.0,0.00017534,2]
[390564444,1760085051742,-500.0,0.00017534,2]
[390564445,1760085051752,-500.0,0.00017534,2]
[390564446,1760085051761,-151.0,0.00017534,2]
[390564447,1760085051771,-500.0,0.00017534,2]
[390564448,1760085051781,-151.0,0.00017534,2]
[390564449,1760085051790,-500.0,0.00017534,2]
[390564450,1760085051800,-940.74,0.00017534,2]
[390564451,1760085051809,-642.4084925,0.00017534,2]
[390564452,1760085051818,-161.80879077,0.00017534,2]
[390564453,1760085051828,-500.0,0.00017534,2]
[390564454,1760085051838,-375.88192312,0.00017534,2]
[390564455,1760085051850,-1042.87,0.00017534,2]
[390564456,1760085051859,-500.0,0.00017534,2]
[390564457,1760085051868,-971.43,0.00017534,2]
[390564458,1760085051878,-841.83,0.00017534,2]
[390564459,1760085051888,-500.0,0.00017534,2]
[390564460,1760085051897,-500.0,0.00017534,2]
[390564461,1760085051906,-844.89,0.00017534,2]
[390564462,1760085051915,-151.0,0.00017534,2]
[390564463,1760085051925,-151.0,0.00017534,2]
[390564464,1760085051934,-981.97,0.00017534,2]
[390564465,1760085051944,-151.0,0.00017534,2]
[390564466,1760085051953,-500.0,0.00017534,2]
[390564467,1760085051963,-500.0,0.00017534,2]
[390564468,1760085051972,-500.0,0.00017534,2]
[390564469,1760085051981,-151.0,0.00017534,2]
[390564470,1760085051990,-206.107839,0.00017534,2]
[390564471,1760085052000,-540.39,0.00017534,2]
[390564472,1760085052009,-151.0,0.00017534,2]
[390564473,1760085052018,-500.0,0.00017534,2]
[390564474,1760085052027,-500.0,0.00017534,2]
[390564475,1760085052037,-151.0,0.00017534,2]
[390564476,1760085052046,-1127.21,0.00017534,2]
[390564477,1760085052055,-500.0,0.00017534,2]
[390564478,1760085052064,-1932.57,0.00017534,2]
[390564479,1760085052073,-500.0,0.00017534,2]
[390564480,1760085052083,-500.0,0.00017534,2]
[390564481,1760085052092,-2474.48,0.00017534,2]
[390564482,1760085052101,-6658.92,0.00017534,2]
[390564483,1760085052111,-746.09,0.00017534,2]
[390564484,1760085052120,-539.02,0.00017534,2]
[390564485,1760085052134,-500.0,0.00017534,2]
[390564486,1760085052143,-500.0,0.00017534,2]
[390564487,1760085052153,-500.0,0.00017534,2]
[390564488,1760085052163,-151.0,0.00017534,2]
[390564489,1760085052172,-500.0,0.00017534,2]
[390564490,1760085052181,-500.0,0.00017534,2]
[390564491,1760085052190,-500.0,0.00017534,2]
[390564492,1760085052202,-842.81,0.00017534,2]
[390564493,1760085052211,-694.92,0.00017534,2]
[390564494,1760085052220,-579.9494024,0.00017534,2]
[390564495,1760085052229,-504.6195507,0.00017534,2]
[390564496,1760085052238,-1801.63,0.00017534,2]
[390564497,1760085052248,-500.0,0.00017534,2]
[390564498,1760085052257,-456.86026017,0.00017534,2]
[390564499,1760085052267,-1266.62,0.00017534,2]
[390564500,1760085052276,-500.0,0.00017534,2]
[390564501,1760085052286,-152.275113,0.00017534,2]
[390564502,1760085052296,-2662.12,0.00017534,2]
[390564503,1760085052305,-500.0,0.00017534,2]
[390564504,1760085052315,-1593.6,0.00017534,2]
[390564505,1760085052325,-151.0,0.00017534,2]
[390564506,1760085052335,-500.0,0.00017534,2]
[390564507,1760085052346,-816.94,0.00017534,2]
[390564508,1760085052355,-151.0,0.00017534,2]
[390564509,1760085052365,-500.0,0.00017534,2]
[390564510,1760085052374,-500.0,0.00017534,2]
[390564511,1760085052383,-500.0,0.00017534,2]
[390564512,1760085052392,-1921.09,0.00017534,2]
[390564513,1760085052401,-151.0,0.00017534,2]
[390564514,1760085052410,-151.0,0.00017534,2]
[390564515,1760085052421,-587.48451648,0.00017534,2]
[390564516,1760085052430,-500.0,0.00017534,2]
[390564517,1760085052439,-500.0,0.00017534,2]
[390564518,1760085052448,-500.0,0.00017534,2]
[390564519,1760085052458,-500.0,0.00017534,2]
[390564520,1760085052467,-500.0,0.00017534,2]
[390564521,1760085052476,-655.21,0.00017534,2]
[390564522,1760085052486,-500.0,0.00017534,2]
[390564523,1760085052495,-500.0,0.00017534,2]
[390564524,1760085052504,-916.35,0.00017534,2]
[390564525,1760085052514,-2201.29809149,0.00017534,2]
[390564526,1760085053047,-500.0,0.00016438,2]
[390564527,1760085053057,-500.0,0.00016712,2]
[390564528,1760085053067,-151.0,0.00016986,2]
[390564529,1760085053077,-563.79,0.0001726,2]
[390564530,1760085053087,-151.0,0.0001726,2]
[390564531,1760085053098,-677.05190851,0.00017534,2]
[390564532,1760085053107,-218.68313584,0.00017534,2]
[390564533,1760085196861,1000.0,0.00027397,120]
[390564534,1760085210431,153.717768,0.00024,30]
[390564535,1760085235646,900.0,0.00024,30]
[390564536,1760085243235,417.04773557,0.00024,30]
[390564537,1760085251234,600.0,0.00024,30]
[390564538,1760085257942,300.0,0.00024,30]
[390564539,1760085328541,244.0,0.00025508,120]
[390564540,1760085332392,200.0,0.00028469,120]
[390564541,1760085392389,200.0,0.00028379,120]
[390564542,1760085479574,410.98,0.00015205,2]
[390564543,1760085512396,200.0,0.00028203,120]
[390564544,1760085572952,200.0,0.00028589,120]
[390564545,1760085630031,214.0,0.00023548,120]
[390564546,1760085631294,214.0,0.00024726,120]
[390564547,1760085692355,200.0,0.0002819,120]
[390564548,1760085761218,610.62158,0.00028,120]
[390564549,1760085762012,169.97,0.00029551,60]
[390564550,1760085810669,153.717768,0.00024,30]
[390564551,1760085873121,200.0,0.00028683,120]
[390564552,1760085874207,988.5,0.0002876,120]
[390564553,1760085974922,-211.06989017,0.00016147,2]
[390564554,1760085974944,-8318.68475317,0.00016247,5]
[390564555,1760085974967,-270.0,0.00016247,3]
[390564556,1760085974988,-316.88871898,0.00016247,2]
[390564557,1760085975011,-171.20339965,0.00016338,2]
[390564558,1760085975032,-300.0,0.00016437,2]
[390564559,1760085975053,-500.0,0.00016438,2]
[390564560,1760085975074,-500.0,0.00016438,2]
[390564561,1760085975097,-500.0,0.00016438,2]
[390564562,1760085975118,-500.0,0.00016438,2]
[390564563,1760085975140,-501.34124379,0.00016438,2]
[390564564,1760085975162,-500.0,0.00016438,2]
[390564565,1760085975187,-500.0,0.00016438,2]
[390564566,1760085975209,-500.0,0.00016438,2]
[390564567,1760085975232,-500.0,0.00016438,2]
[390564568,1760085975255,-500.0,0.00016438,2]
[390564569,1760085975277,-624.41840311,0.00016438,2]
[390564570,1760085975300,-500.0,0.00016438,2]
[390564571,1760085975321,-500.0,0.00016438,2]
[390564572,1760085975343,-500.0,0.00016438,2]
[390564573,1760085975366,-500.0,0.00016438,2]
[390564574,1760085975391,-500.0,0.00016438,2]
[390564575,1760085975414,-500.0,0.00016438,2]
[390564576,1760085975436,-500.0,0.00016438,2]
[390564577,1760085975457,-1117.48,0.00016438,2]
[390564578,1760085975479,-500.0,0.00016438,2]
[390564579,1760085975502,-500.0,0.00016438,2]
[390564580,1760085975525,-500.0,0.00016438,2]
[390564581,1760085975547,-500.0,0.00016438,2]
[390564582,1760085975569,-500.0,0.00016438,2]
[390564583,1760085975592,-500.0,0.00016438,2]
[390564584,1760085975615,-730.12,0.00016438,2]
[390564585,1760085975637,-153.62335116,0.00016438,2]
[390564586,1760085975660,-500.0,0.00016438,2]
[390564587,1760085975682,-941.18,0.00016438,2]
[390564588,1760085975706,-500.0,0.00016438,2]
[390564589,1760085975729,-500.0,0.00016438,2]
[390564590,1760085975751,-500.0,0.00016438,2]
[390564591,1760085975773,-500.0,0.00016438,2]
[390564592,1760085975795,-500.0,0.00016438,2]
[390564593,1760085975817,-500.0,0.00016438,2]
[390564594,1760085975838,-1294.87,0.00016438,2]
[390564595,1760085975859,-500.0,0.00016438,2]
[390564596,1760085975883,-500.0,0.00016438,2]
[390564597,1760085975904,-500.0,0.00016438,2]
[390564598,1760085975925,-500.0,0.00016438,2]
[390564599,1760085975946,-500.0,0.00016438,2]
[390564600,1760085975969,-500.0,0.00016438,2]
[390564601,1760085975993,-500.0,0.00016438,2]
[390564602,1760085976017,-500.0,0.00016438,2]
[390564603,1760085976039,-893.43,0.00016438,2]
[390564604,1760085976067,-500.0,0.00016438,2]
[390564605,1760085976088,-500.0,0.00016438,2]
[390564606,1760085976112,-500.0,0.00016438,2]
[390564607,1760085976138,-500.0,0.00016438,2]
[390564608,1760085976164,-500.0,0.00016438,2]
[390564609,1760085976190,-500.0,0.00016438,2]
[390564610,1760085976213,-600.61,0.00016438,2]
[390564611,1760085976238,-503.81898841,0.00016438,2]
[390564612,1760085976261,-500.0,0.00016438,2]
[390564613,1760085976283,-900.14,0.00016438,2]
[390564614,1760085976306,-640.12,0.00016438,2]
[390564615,1760085976327,-500.0,0.00016438,2]
[390564616,1760085976349,-500.0,0.00016438,2]
[390564617,1760085976372,-500.0,0.00016438,2]
[390564618,1760085976396,-500.0,0.00016438,2]
[390564619,1760085976418,-500.0,0.00016438,2]
[390564620,1760085976441,-500.0,0.00016438,2]
[390564621,1760085976465,-500.0,0.00016438,2]
[390564622,1760085976492,-178.82930979,0.00016438,2]
[390564623,1760085976514,-500.0,0.00016438,2]
[390564624,1760085976536,-500.0,0.00016438,2]
[390564625,1760085976558,-500.0,0.00016438,2]
[390564626,1760085976580,-500.0,0.00016438,2]
[390564627,1760085976602,-500.0,0.00016438,2]
[390564628,1760085976624,-500.0,0.00016438,2]
[390564629,1760085976647,-1099.86,0.00016438,2]
[390564630,1760085976670,-500.0,0.00016438,2]
[390564631,1760085976692,-500.0,0.00016438,2]
[390564632,1760085976714,-500.0,0.00016438,2]
[390564633,1760085976737,-232.31194177,0.00016438,2]
[390564634,1760086001307,151.0,0.000151,2]
[390564635,1760086003905,-151.0,0.000158,2]
[390564636,1760086003926,-151.0,0.000164,2]
[390564637,1760086003948,-857.94805823,0.00016438,2]
[390564638,1760086003973,-565.95,0.00016438,2]
[390564639,1760086003994,-500.0,0.00016438,2]
[390564640,1760086004015,-489.84391691,0.00016438,2]
[390564641,1760086004037,-500.0,0.00016438,2]
[390564642,1760086004058,-500.0,0.00016438,2]
[390564643,1760086004080,-500.0,0.00016438,2]
[390564644,1760086004101,-500.0,0.00016438,2]
[390564645,1760086004123,-401.44330821,0.00016438,2]
[390564646,1760086004146,-500.0,0.00016438,2]
[390564647,1760086004169,-569.22,0.00016438,2]
[390564648,1760086004192,-500.0,0.00016438,2]
[390564649,1760086004214,-500.0,0.00016438,2]
[390564650,1760086004237,-500.0,0.00016438,2]
[390564651,1760086004258,-500.0,0.00016438,2]
[390564652,1760086004279,-500.0,0.00016438,2]
[390564653,1760086004300,-503.11882151,0.00016438,2]
[390564654,1760086004322,-500.0,0.00016438,2]
[390564655,1760086004343,-500.0,0.00016438,2]
[390564656,1760086004365,-500.0,0.00016438,2]
[390564657,1760086004389,-500.0,0.00016438,2]
[390564658,1760086004410,-500.0,0.00016438,2]
[390564659,1760086004433,-500.0,0.00016438,2]
[390564660,1760086004456,-500.0,0.00016438,2]
[390564661,1760086004477,-500.0,0.00016438,2]
[390564662,1760086004497,-500.0,0.00016438,2]
[390564663,1760086004517,-914.63,0.00016438,2]
[390564664,1760086004540,-500.0,0.00016438,2]
[390564665,1760086004560,-500.0,0.00016438,2]
[390564666,1760086004581,-500.0,0.00016438,2]
[390564667,1760086004602,-502.92534349,0.00016438,2]
[390564668,1760086004622,-500.0,0.00016438,2]
[390564669,1760086004643,-500.0,0.00016438,2]
[390564670,1760086004664,-500.0,0.00016438,2]
[390564671,1760086004685,-529.78508243,0.00016438,2]
[390564672,1760086004706,-500.0,0.00016438,2]
[390564673,1760086004727,-500.0,0.00016438,2]
[390564674,1760086004748,-363.13546922,0.00016438,2]
[390564675,1760086011666,150.0,0.00029586,60]
[390564677,1760086027591,-300.0,0.00016437,2]
[390564678,1760086027614,-136.86453078,0.00016438,2]
[390564679,1760086027636,-1084.95,0.00016438,2]
[390564680,1760086027658,-500.0,0.00016438,2]
[390564681,1760086027681,-500.0,0.00016438,2]
[390564682,1760086027703,-500.0,0.00016438,2]
[390564683,1760086027726,-445.02304004,0.00016438,2]
[390564684,1760086027749,-500.0,0.00016438,2]
[390564685,1760086027772,-1973.21,0.00016438,2]
[390564686,1760086027795,-500.0,0.00016438,2]
[390564687,1760086027819,-500.0,0.00016438,2]
[390564688,1760086027842,-977.93,0.00016438,2]
[390564689,1760086027866,-500.0,0.00016438,2]
[390564690,1760086027889,-500.0,0.00016438,2]
[390564691,1760086027915,-500.0,0.00016438,2]
[390564692,1760086027936,-500.0,0.00016438,2]
[390564693,1760086027959,-82.02242918,0.00016438,2]
[390564694,1760086109117,1066.8209,0.00029598,120]
[390564695,1760086132453,1000.0,0.00027397,120]
[390564699,1760086162148,-230.3,0.00015699,3]
[390564706,1760086231813,200.0,0.00028301,120]
[390564737,1760086238184,-16.7,0.00015699,3]
[390564739,1760086238194,-317.47018768,0.00015699,2]
[390564741,1760086238205,-2281.08070817,0.0001599,2]
[390564742,1760086238214,-365.09071584,0.00016299,2]
[390564743,1760086238225,-717.26,0.00016428,3]
[390564744,1760086238235,-500.0,0.00016437,2]
[390564745,1760086238244,-300.0,0.00016437,2]
[390564746,1760086238254,-500.0,0.00016437,2]
[390564747,1760086238265,-359.45643935,0.00016437,2]
[390564748,1760086238274,-417.97757082,0.00016438,2]
[390564749,1760086238284,-501.64638071,0.00016438,2]
[390564750,1760086238295,-500.0,0.00016438,2]
[390564751,1760086238304,-500.0,0.00016438,2]
[390564752,1760086238314,-500.0,0.00016438,2]
[390564753,1760086238324,-500.0,0.00016438,2]
[390564754,1760086238334,-1011.91,0.00016438,2]
[390564755,1760086238346,-500.0,0.00016438,2]
[390564756,1760086238355,-876.77,0.00016438,2]
[390564757,1760086238365,-500.0,0.00016438,2]
[390564758,1760086238374,-500.0,0.00016438,2]
[390564759,1760086238384,-500.0,0.00016438,2]
[390564760,1760086238393,-500.0,0.00016438,2]
[390564761,1760086238403,-500.0,0.00016438,2]
[390564762,1760086238412,-500.0,0.00016438,2]
[390564763,1760086238421,-500.0,0.00016438,2]
[390564764,1760086238434,-500.0,0.00016438,2]
[390564765,1760086238446,-500.0,0.00016438,2]
[390564766,1760086238456,-500.0,0.00016438,2]
[390564767,1760086238466,-500.0,0.00016438,2]
[390564768,1760086238477,-503.10646988,0.00016438,2]
[390564769,1760086238487,-500.0,0.00016438,2]
[390564770,1760086238496,-2019.47,0.00016438,2]
[390564771,1760086238506,-500.0,0.00016438,2]
[390564772,1760086238515,-500.0,0.00016438,2]
[390564773,1760086238525,-500.0,0.00016438,2]
[390564774,1760086238534,-500.0,0.00016438,2]
[390564775,1760086238544,-500.0,0.00016438,2]
[390564776,1760086238553,-501.49770499,0.00016438,2]
[390564777,1760086238563,-477.03086216,0.00016438,2]
[390564778,1760086238572,-500.0,0.00016438,2]
[390564779,1760086238581,-500.0,0.00016438,2]
[390564780,1760086238590,-500.0,0.00016438,2]
[390564781,1760086238599,-501.10732289,0.00016438,2]
[390564782,1760086238608,-247.62573965,0.00016438,2]
[390564783,1760086238617,-500.0,0.00016438,2]
[390564784,1760086238626,-503.80566,0.00016438,2]